lending/lending_fUSD_20260110
["ID","MTS","AMOUNT","RATE_DAILY","PERIOD"]
[401167894,1768008650544,-395.664357,0.00017999,2]
[401167895,1768008650553,-297.140674,0.00017999,2]
[401167896,1768008650563,-151.0,0.00017999,2]
[401167897,1768008650572,-151.0,0.00017999,2]
[401167898,1768008650582,-151.0,0.00017999,2]
[401167899,1768008650591,-151.0,0.00017999,2]
[401167900,1768008650601,-151.0,0.00017999,2]
[401167901,1768008650611,-11541.22312061,0.00017999,2]
[401167902,1768008650621,-300.0,0.00017999,2]
[401167903,1768008650630,-666.0,0.00017999,2]
[401167904,1768008650640,-205.42556865,0.00018,2]
[401167905,1768008650650,-227.82348982,0.00018,2]
[401167906,1768008650659,-164.45982182,0.00018,2]
[401167907,1768008650669,-166.98497476,0.00018,2]
[401167908,1768008650678,-189.28919709,0.00018,2]
[401167909,1768008650688,-285.586954,0.00018,2]
[401167910,1768008650698,-244.06861023,0.00018,2]
[401167911,1768008650708,-151.06420605,0.00018,2]
[401167912,1768008650718,-212.96557144,0.00018,2]
[401167913,1768008650727,-211.04252202,0.00018,2]
[401167914,1768008650740,-172.35755582,0.00018,2]
[401167915,1768008650749,-228.74213308,0.00018,2]
[401167916,1768008650758,-157.99284637,0.00018,2]
[401167917,1768008650768,-195.57171402,0.00018,2]
[401167918,1768008650778,-247.0,0.00018,2]
[401167919,1768008650787,-131200.90344282,0.00018,2]
[401167920,1768008651517,-430.47951996,0.00018,2]
[401167921,1768008651530,-6661.33622177,0.00018,2]
[401167922,1768008651542,-453.1113094,0.00018,2]
[401167923,1768008651554,-419.546803,0.00018,2]
[401167924,1768008651566,-33727.34879438,0.00018,2]
[401167925,1768008651578,-1901.96,0.00018,2]
[401167926,1768008654873,-500.0,0.00015926,2]
[401167927,1768008654887,-299.54535177,0.00015981,2]
[401167928,1768008654906,-200.45464823,0.00015981,2]
[401167929,1768008654919,-500.0,0.00016036,2]
[401167930,1768008654931,-500.0,0.0001609,2]
[401167931,1768008654943,-94.4803024,0.00016145,2]
[401167932,1768008655628,-273.60000004,0.00016145,2]
[401167933,1768008655711,-131.91969756,0.00016145,2]
[401167934,1768008655723,-242.45021179,0.000162,2]
[401167935,1768008656253,-257.54978821,0.000162,2]
[401167936,1768008656263,-406.47143254,0.00016255,2]
[401167937,1768008656278,-93.52856746,0.00016255,2]
[401167938,1768008656289,-500.0,0.0001631,2]
[401167939,1768008656301,-500.0,0.00016364,2]
[401167940,1768008656312,-640.19241714,0.00016419,2]
[401167941,1768008656324,-646.33732573,0.00016796,2]
[401167942,1768008656336,-661.58,0.00017041,2]
[401167943,1768008656347,-482.82,0.00017041,2]
[401167944,1768008656359,-7700.11774295,0.00017042,2]
[401167945,1768008656370,-150.0,0.00017973,2]
[401167946,1768008656381,-16888.81713703,0.00018,2]
[401167947,1768008656401,-7700.11774295,0.00017328,2]
[401167948,1768008656412,-30723.66018075,0.00018,2]
[401167949,1768008656426,-311.95472696,0.00018,2]
[401167950,1768008656502,-366.60218963,0.00018,2]
[401167951,1768008656513,-258.31486703,0.00018,2]
[401167952,1768008656524,-3334.19286682,0.00018,2]
[401167953,1768008656562,-14827.20269495,0.00018,2]
[401167954,1768008656573,-986.79100016,0.00018,2]
[401167955,1768008656585,-434.53599535,0.00018,2]
[401167959,1768008922726,-7025.1571,0.00015159,2]
[401167960,1768008922749,-242.37649721,0.00015215,2]
[401167961,1768008922772,-177.04099288,0.00015215,2]
[401167962,1768008922795,-200.0,0.00015237,2]
[401167963,1768008922819,-1200.0,0.00015248,2]
[401167964,1768008922841,-166.56,0.00015249,3]
[401167965,1768008922864,-499.68,0.00015249,3]
[401167966,1768008922886,-13391.33696541,0.00015249,2]
[401167967,1768008922910,-258.0,0.00015258,2]
[401167968,1768008922936,-300.0,0.00015258,2]
[401167969,1768008922963,-2932.8484445,0.00015259,2]
[401167979,1768009751503,851.04,0.000202,30]
[401167981,1768009768831,1662.8,0.00010484,2]
[401167986,1768009831707,-333.12,0.00013699,2]
[401167987,1768009831717,-195.0,0.00014098,2]
[401167988,1768009831726,-634.77420329,0.00014497,2]
[401167989,1768009831815,-257.87596969,0.00014497,2]
[401167990,1768009831959,-605.71259571,0.00014497,2]
[401167991,1768009831971,-449.66614174,0.00014497,2]
[401167994,1768009831988,-431.16,0.00014497,2]
[401167996,1768009831999,-860.81108957,0.00014497,2]
[401167997,1768009832009,-195.94804941,0.00014498,2]
[401167999,1768009832019,-111.42440347,0.000145,2]
[401168002,1768009832031,-88.57559653,0.000145,2]
[401168003,1768009832041,-182.92,0.00014622,2]
[401168005,1768009832050,-999.0,0.00014818,3]
[401168007,1768009832060,-440.20133931,0.0001483,2]
[401168041,1768009832616,-759.79866069,0.0001483,2]
[401168042,1768009832625,-300.0,0.0001483,2]
[401168043,1768009832634,-14620.32,0.00014831,2]
[401168044,1768009832643,-496.88559447,0.00014968,2]
[401168045,1768009832653,-8031.82114009,0.00015004,2]
[401168046,1768009832662,-184.89547064,0.00015004,2]
[401168047,1768009832671,-150.0,0.00015058,2]
[401168048,1768009832680,-77396.81265749,0.00015059,2]
[401168049,1768009832695,-729.51283028,0.00015059,2]
[401168050,1768009832707,-259.39015822,0.00015059,2]
[401168052,1768009838007,-214.6877974,0.00015058,2]
[401168053,1768009838017,-236.01145902,0.00015058,2]
[401168054,1768009838026,-246.64383108,0.00015058,2]
[401168055,1768009838035,-8893.99242591,0.00015059,2]
[401168056,1768009838047,-10594.42177342,0.00015059,2]
[401168075,1768009838502,-852.5385392,0.00015059,2]
[401168079,1768009839914,-3142.39173634,0.00015059,2]
[401168080,1768009840031,-898130.93987914,0.00015059,2]
[401168081,1768009840041,-351.4183772,0.00015068,2]
[401168082,1768009840050,-765.06698758,0.00015068,2]
[401168083,1768009840060,-195.0,0.00015068,2]
[401168084,1768009840070,-10407.7785,0.00015138,2]
[401168085,1768009840085,-300.0,0.00015157,2]
[401168086,1768009840097,-300.0,0.00015158,2]
[401168087,1768009840107,-25024.0485,0.00015159,2]
[401168088,1768009840116,-1335.052,0.00015159,2]
[401168089,1768009840126,-404.89650824,0.00015187,2]
[401168090,1768009840136,-229.50398769,0.00015215,2]
[401168091,1768009840146,-6362.01013606,0.00015215,2]
[401168092,1768009840156,-5469.63784536,0.00015228,2]
[401168093,1768009840168,-759.82,0.00015237,2]
[401168094,1768009840181,-41465.37522061,0.00015238,2]
[401168095,1768009840192,-505.33267795,0.0001525,2]
[401168096,1768009840202,-202.21881844,0.0001525,2]
[401168097,1768009840211,-500.0,0.0001525,2]
[401168098,1768009840225,-500.0,0.0001525,2]
[401168099,1768009840244,-500.0,0.0001525,2]
[401168100,1768009840263,-500.0,0.0001525,2]
[401168101,1768009840276,-500.0,0.0001525,2]
[401168102,1768009840286,-500.0,0.0001525,2]
[401168103,1768009840296,-500.0,0.0001525,2]
[401168104,1768009840306,-500.0,0.0001525,2]
[401168105,1768009840315,-500.0,0.0001525,2]
[401168106,1768009840325,-500.0,0.0001525,2]
[401168107,1768009840335,-520.29135469,0.0001525,2]
[401168108,1768009840344,-500.0,0.0001525,2]
[401168109,1768009840353,-500.0,0.0001525,2]
[401168110,1768009840364,-500.0,0.0001525,2]
[401168111,1768009840373,-500.0,0.0001525,2]
[401168112,1768009840383,-500.0,0.0001525,2]
[401168113,1768009840392,-500.0,0.0001525,2]
[401168114,1768009840402,-527.34228679,0.0001525,2]
[401168115,1768009840414,-151.0,0.0001525,2]
[401168116,1768009840423,-151.0,0.0001525,2]
[401168117,1768009840433,-151.0,0.0001525,2]
[401168118,1768009840442,-151.0,0.0001525,2]
[401168119,1768009840451,-151.0,0.0001525,2]
[401168120,1768009840461,-151.0,0.0001525,2]
[401168121,1768009840471,-151.0,0.0001525,2]
[401168122,1768009840481,-151.0,0.0001525,2]
[401168123,1768009840490,-151.0,0.0001525,2]
[401168124,1768009840500,-151.0,0.0001525,2]
[401168125,1768009840510,-151.0,0.0001525,2]
[401168126,1768009840519,-151.0,0.0001525,2]
[401168127,1768009840528,-203.86411687,0.0001525,2]
[401168128,1768009840537,-626.27196142,0.00015258,2]
[401168129,1768009840547,-5346.06634884,0.00015259,2]
[401168130,1768009840556,-1444.104,0.00015259,2]
[401168131,1768009840565,-183.30285475,0.00015259,2]
[401168132,1768009840574,-500.0,0.00015259,2]
[401168133,1768009840583,-516.4841802,0.00015259,2]
[401168134,1768009840593,-500.0,0.00015259,2]
[401168135,1768009840602,-500.0,0.00015259,2]
[401168136,1768009840612,-500.0,0.00015259,2]
[401168137,1768009840622,-500.0,0.00015259,2]
[401168138,1768009840631,-500.0,0.00015259,2]
[401168139,1768009840641,-500.0,0.00015259,2]
[401168140,1768009840650,-500.0,0.00015259,2]
[401168141,1768009840660,-518.74295457,0.00015259,2]
[401168142,1768009840670,-1000.0,0.00015315,2]
[401168143,1768009840679,-8031.82114008,0.00015326,2]
[401168144,1768009840689,-496.88559444,0.00015387,2]
[401168145,1768009840698,-500.0,0.00015414,2]
[401168146,1768009840707,-500.0,0.00015414,2]
[401168147,1768009840717,-500.0,0.00015414,2]
[401168148,1768009840727,-519.9411924,0.00015414,2]
[401168149,1768009840736,-500.0,0.00015414,2]
[401168150,1768009840746,-500.0,0.00015414,2]
[401168151,1768009840756,-500.0,0.00015414,2]
[401168152,1768009840766,-505.25136596,0.00015414,2]
[401168153,1768009840775,-500.0,0.00015414,2]
[401168154,1768009840785,-527.4021431,0.00015414,2]
[401168155,1768009840794,-759.82,0.00015511,2]
[401168156,1768009840803,-6362.01013604,0.00015513,2]
[401168157,1768009840813,-327.61269242,0.00015524,2]
[401168158,1768009840823,-500.0,0.00015567,2]
[401168159,1768009840832,-182.92,0.00015597,2]
[401168160,1768009840841,-8031.82114008,0.00015648,2]
[401168161,1768009840851,-151.0,0.00015651,2]
[401168162,1768009840860,-151.0,0.00015651,2]
[401168163,1768009840869,-151.0,0.00015703,2]
[401168164,1768009840878,-151.0,0.00015703,2]
[401168165,1768009840888,-323.20096573,0.0001575,2]
[401168166,1768009840897,-759.82,0.00015785,2]
[401168167,1768009840906,-365.15381069,0.000158,2]
[401168168,1768009840915,-496.88559444,0.00015806,2]
[401168169,1768009840925,-6362.01013604,0.00015812,2]
[401168170,1768009840933,-320.21776591,0.000159,2]
[401168171,1768009840943,-320.21776589,0.000159,2]
[401168172,1768009840951,-320.21776589,0.000159,2]
[401168173,1768009840961,-320.21776589,0.000159,2]
[401168174,1768009840971,-320.21776589,0.000159,2]
[401168175,1768009840980,-1000.0,0.00015918,2]
[401168176,1768009840990,-519.75387124,0.00015947,2]
[401168177,1768009841000,-250.0,0.00015947,2]
[401168178,1768009841010,-195.0,0.00015949,2]
[401168179,1768009841019,-393.26677801,0.00015959,2]
[401168180,1768009841028,-8031.82114008,0.00015969,2]
[401168181,1768009841039,-759.82,0.00016059,2]
[401168182,1768009841049,-246.80918934,0.00016069,2]
[401168183,1768009841058,-184.89547063,0.00016105,2]
[401168184,1768009841068,-6362.01013604,0.0001611,2]
[401168185,1768009841078,-150.99,0.00016116,2]
[401168186,1768009841088,-4200.39,0.00016116,2]
[401168187,1768009841097,-9999.99,0.00016116,2]
[401168188,1768009841107,-537.9,0.00016116,5]
[401168189,1768009841116,-299.99,0.00016116,4]
[401168190,1768009841126,-12483.3,0.00016116,2]
[401168191,1768009841135,-150.99,0.00016116,2]
[401168192,1768009841144,-365.15381069,0.0001615,2]
[401168193,1768009841154,-150.0,0.000162,2]
[401168194,1768009841163,-150.0,0.000162,2]
[401168195,1768009841173,-150.0,0.000162,2]
[401168196,1768009841183,-150.0,0.000162,2]
[401168197,1768009841192,-150.0,0.000162,2]
[401168198,1768009841200,-150.0,0.000162,2]
[401168199,1768009841210,-150.0,0.000162,2]
[401168200,1768009841220,-150.0,0.000162,2]
[401168201,1768009841233,-150.0,0.000162,2]
[401168202,1768009841243,-150.0,0.000162,2]
[401168203,1768009841252,-150.0,0.000162,2]
[401168204,1768009841262,-150.0,0.000162,2]
[401168205,1768009841273,-150.0,0.000162,2]
[401168206,1768009841283,-150.0,0.000162,2]
[401168207,1768009841294,-150.25923791,0.000162,2]
[401168208,1768009841306,-150.0,0.000162,2]
[401168209,1768009841321,-150.0,0.000162,2]
[401168210,1768009841331,-150.0,0.00016219,2]
[401168211,1768009841340,-150.0,0.0001622,2]
[401168212,1768009841351,-150.0,0.00016222,2]
[401168213,1768009841360,-150.0,0.00016223,2]
[401168214,1768009841370,-150.0,0.00016225,2]
[401168215,1768009841380,-150.0,0.00016227,2]
[401168216,1768009841390,-150.0,0.00016228,2]
[401168217,1768009841400,-420.0,0.00016233,2]
[401168218,1768009841410,-150.0,0.00016237,2]
[401168219,1768009841420,-150.0,0.00016241,2]
[401168220,1768009841429,-150.0,0.00016244,2]
[401168221,1768009841439,-150.0,0.00016246,2]
[401168222,1768009841449,-150.0,0.00016251,2]
[401168223,1768009841459,-150.0,0.00016254,2]
[401168224,1768009841468,-150.0,0.00016255,2]
[401168225,1768009841478,-150.0,0.00016256,2]
[401168226,1768009841487,-150.0,0.00016261,2]
[401168227,1768009841496,-150.0,0.00016264,2]
[401168228,1768009841506,-150.0,0.00016267,2]
[401168229,1768009841515,-150.0,0.00016268,2]
[401168230,1768009841525,-3998.74498603,0.00016272,2]
[401168231,1768009841534,-500.0,0.00016273,2]
[401168232,1768009841544,-150.0,0.00016275,2]
[401168233,1768009841554,-150.0,0.00016276,2]
[401168234,1768009841564,-150.0,0.00016281,2]
[401168235,1768009841574,-150.0,0.00016282,2]
[401168236,1768009841584,-150.0,0.00016283,2]
[401168237,1768009841594,-150.0,0.00016289,2]
[401168238,1768009841604,-150.0,0.0001629,2]
[401168239,1768009841614,-8031.82114008,0.00016291,2]
[401168240,1768009841624,-150.0,0.00016291,2]
[401168241,1768009841633,-150.0,0.00016294,2]
[401168242,1768009841642,-188.4270685,0.000163,2]
[401168243,1768009841652,-150.0,0.00016301,2]
[401168244,1768009841662,-150.0,0.00016302,2]
[401168245,1768009841671,-150.0,0.00016307,2]
[401168246,1768009841681,-150.0,0.00016311,2]
[401168247,1768009841690,-150.0,0.00016311,2]
[401168248,1768009841700,-150.0,0.00016312,2]
[401168249,1768009841709,-1680.0,0.00016313,2]
[401168250,1768009841719,-150.0,0.00016314,2]
[401168251,1768009841728,-150.0,0.00016323,2]
[401168252,1768009841738,-150.0,0.00016327,2]
[401168253,1768009841747,-150.0,0.00016329,2]
[401168254,1768009841757,-150.0,0.00016329,2]
[401168255,1768009841766,-150.0,0.00016331,2]
[401168256,1768009841775,-759.82,0.00016333,2]
[401168257,1768009841785,-150.0,0.00016333,2]
[401168258,1768009841794,-150.0,0.00016334,2]
[401168259,1768009841804,-150.0,0.00016337,2]
[401168260,1768009841813,-150.0,0.00016338,2]
[401168261,1768009841823,-482.82,0.00016341,2]
[401168262,1768009841832,-150.0,0.00016343,2]
[401168263,1768009841842,-150.0,0.0001635,2]
[401168264,1768009841851,-150.0,0.00016352,2]
[401168265,1768009841861,-150.0,0.00016356,2]
[401168266,1768009841871,-150.0,0.00016359,2]
[401168267,1768009841881,-150.0,0.00016361,2]
[401168268,1768009841891,-150.0,0.00016364,2]
[401168269,1768009841902,-150.0,0.00016366,2]
[401168270,1768009841912,-150.0,0.00016369,2]
[401168271,1768009841922,-150.0,0.00016377,2]
[401168272,1768009841932,-150.0,0.00016378,2]
[401168273,1768009841942,-150.0,0.0001638,2]
[401168274,1768009841951,-150.0,0.00016382,2]
[401168275,1768009841961,-150.0,0.00016384,2]
[401168276,1768009841970,-150.0,0.00016387,2]
[401168277,1768009841980,-150.0,0.00016388,2]
[401168278,1768009841990,-150.0,0.00016393,2]
[401168279,1768009841999,-150.0,0.00016394,2]
[401168280,1768009842009,-150.0,0.000164,2]
[401168281,1768009842019,-150.0,0.00016403,2]
[401168282,1768009842028,-150.0,0.00016405,2]
[401168283,1768009842037,-150.0,0.00016405,2]
[401168284,1768009842046,-150.0,0.00016406,2]
[401168285,1768009842056,-500.0,0.00016407,2]
[401168286,1768009842066,-6362.01013604,0.00016408,2]
[401168287,1768009842075,-150.0,0.00016415,2]
[401168288,1768009842085,-150.0,0.00016422,2]
[401168289,1768009842094,-150.0,0.00016422,2]
[401168290,1768009842103,-150.0,0.00016425,2]
[401168291,1768009842113,-150.0,0.00016425,2]
[401168292,1768009842122,-150.0,0.00016425,2]
[401168293,1768009842131,-150.0,0.00016428,2]
[401168294,1768009842140,-150.0,0.00016428,2]
[401168295,1768009842150,-600.0,0.00016438,2]
[401168296,1768009842159,-10290.07,0.00016438,2]
[401168297,1768009842168,-150.0,0.00016442,2]
[401168298,1768009842178,-150.0,0.00016444,2]
[401168299,1768009842187,-150.0,0.00016444,2]
[401168300,1768009842195,-150.0,0.00016445,2]
[401168301,1768009842205,-150.0,0.00016449,2]
[401168302,1768009842215,-150.0,0.00016451,2]
[401168303,1768009842225,-150.0,0.00016454,2]
[401168304,1768009842236,-150.0,0.00016457,2]
[401168305,1768009842246,-150.0,0.00016457,2]
[401168306,1768009842256,-150.0,0.00016462,2]
[401168307,1768009842266,-150.0,0.00016466,2]
[401168308,1768009842276,-150.0,0.00016467,2]
[401168309,1768009842286,-150.0,0.00016469,2]
[401168310,1768009842296,-150.0,0.0001647,2]
[401168311,1768009842308,-150.0,0.00016473,2]
[401168312,1768009842318,-150.0,0.00016477,2]
[401168313,1768009842327,-150.0,0.00016479,2]
[401168314,1768009842337,-150.0,0.00016481,2]
[401168315,1768009842347,-150.0,0.00016486,2]
[401168316,1768009842357,-150.0,0.00016489,2]
[401168317,1768009842367,-150.0,0.00016496,2]
[401168318,1768009842377,-150.0,0.00016496,2]
[401168319,1768009842387,-150.0,0.000165,2]
[401168320,1768009842396,-365.15381069,0.000165,2]
[401168321,1768009842406,-150.0,0.00016504,2]
[401168322,1768009842416,-150.0,0.00016505,2]
[401168323,1768009842425,-150.0,0.00016507,2]
[401168324,1768009842435,-150.0,0.00016511,2]
[401168325,1768009842445,-1000.0,0.00016515,2]
[401168326,1768009842455,-150.0,0.00016519,2]
[401168327,1768009842465,-150.0,0.00016519,2]
[401168328,1768009842475,-150.0,0.00016521,2]
[401168329,1768009842484,-150.0,0.00016522,2]
[401168330,1768009842494,-150.0,0.00016527,2]
[401168331,1768009842503,-150.0,0.0001653,2]
[401168332,1768009842513,-332.7275258,0.00016531,2]
[401168333,1768009842523,-150.0,0.00016532,2]
[401168334,1768009842532,-150.0,0.00016533,2]
[401168335,1768009842542,-150.0,0.00016537,2]
[401168336,1768009842551,-150.0,0.00016542,2]
[401168337,1768009842562,-150.0,0.00016548,2]
[401168338,1768009842571,-150.0,0.00016549,2]
[401168339,1768009842580,-150.0,0.00016555,2]
[401168340,1768009842590,-150.0,0.00016556,2]
[401168342,1768009842599,-150.0,0.00016556,2]
[401168343,1768009842609,-150.0,0.0001656,2]
[401168344,1768009842618,-150.0,0.0001656,2]
[401168345,1768009842627,-150.0,0.0001656,2]
[401168346,1768009842636,-150.0,0.0001656,2]
[401168347,1768009842647,-150.0,0.00016565,2]
[401168348,1768009842657,-150.0,0.00016568,2]
[401168349,1768009842667,-182.92,0.00016571,2]
[401168350,1768009842676,-150.0,0.00016575,2]
[401168351,1768009842685,-150.0,0.00016576,2]
[401168353,1768009842694,-150.0,0.00016578,2]
[401168354,1768009842703,-150.0,0.0001658,2]
[401168355,1768009842712,-150.0,0.00016586,2]
[401168356,1768009842722,-150.0,0.00016586,2]
[401168357,1768009842732,-150.0,0.00016587,2]
[401168358,1768009842742,-150.0,0.00016588,2]
[401168359,1768009842751,-150.0,0.00016589,2]
[401168360,1768009842761,-150.0,0.00016594,2]
[401168361,1768009842771,-150.0,0.000166,2]
[401168362,1768009842781,-150.0,0.00016603,2]
[401168363,1768009842790,-150.0,0.00016606,2]
[401168364,1768009842800,-759.82,0.00016607,2]
[401168365,1768009842809,-150.0,0.00016609,2]
[401168366,1768009842819,-150.0,0.0001661,2]
[401168367,1768009842829,-150.0,0.00016612,2]
[401168368,1768009842839,-8031.82114008,0.00016613,2]
[401168369,1768009842848,-150.0,0.00016615,2]
[401168370,1768009842857,-150.0,0.00016622,2]
[401168371,1768009842866,-150.0,0.0001663,2]
[401168372,1768009842875,-150.0,0.0001663,2]
[401168373,1768009842885,-150.0,0.00016631,2]
[401168374,1768009842894,-150.0,0.00016631,2]
[401168375,1768009842903,-150.0,0.00016633,2]
[401168376,1768009842913,-482.82,0.00016641,2]
[401168377,1768009842922,-150.0,0.00016643,2]
[401168378,1768009842931,-150.0,0.00016644,2]
[401168379,1768009842940,-150.0,0.0001665,2]
[401168380,1768009842949,-150.0,0.0001665,2]
[401168381,1768009842959,-150.0,0.0001665,2]
[401168382,1768009842969,-150.0,0.0001665,2]
[401168383,1768009842978,-150.0,0.0001665,2]
[401168384,1768009842987,-150.0,0.00016656,2]
[401168385,1768009842996,-150.0,0.00016656,2]
[401168386,1768009843006,-150.0,0.00016657,2]
[401168387,1768009843015,-150.0,0.00016667,2]
[401168388,1768009843024,-150.0,0.00016669,2]
[401168389,1768009843033,-150.0,0.0001667,2]
[401168390,1768009843043,-150.0,0.00016671,2]
[401168391,1768009843052,-150.0,0.00016678,2]
[401168392,1768009843061,-150.0,0.00016682,2]
[401168393,1768009843071,-150.0,0.00016684,2]
[401168394,1768009843080,-150.0,0.00016687,2]
[401168395,1768009843089,-150.0,0.00016689,2]
[401168396,1768009843098,-150.0,0.00016691,2]
[401168397,1768009843108,-150.0,0.00016698,2]
[401168398,1768009843118,-150.0,0.00016701,2]
[401168399,1768009843127,-466.0,0.00016705,2]
[401168400,1768009843137,-150.0,0.00016706,2]
[401168401,1768009843146,-6362.01013604,0.00016707,2]
[401168402,1768009843155,-150.0,0.00016707,2]
[401168403,1768009843431,-150.0,0.0001671,2]
[401168404,1768009843441,-150.0,0.00016711,2]
[401168405,1768009843450,-150.0,0.00016711,2]
[401168406,1768009843460,-160.0,0.00016712,2]
[401168407,1768009843470,-150.0,0.00016714,2]
[401168408,1768009843479,-150.0,0.00016714,2]
[401168409,1768009843489,-150.0,0.00016724,2]
[401168410,1768009843498,-150.0,0.00016725,2]
[401168411,1768009843507,-150.0,0.00016726,2]
[401168412,1768009843517,-150.0,0.00016732,2]
[401168413,1768009843527,-150.0,0.00016732,2]
[401168414,1768009843537,-150.0,0.00016733,2]
[401168415,1768009843546,-1000.0,0.00016735,2]
[401168416,1768009843556,-150.0,0.00016737,2]
[401168417,1768009843565,-150.0,0.0001674,2]
[401168418,1768009843575,-150.0,0.00016744,2]
[401168419,1768009843584,-150.0,0.00016747,2]
[401168420,1768009843593,-150.0,0.00016752,2]
[401168421,1768009843603,-150.0,0.00016754,2]
[401168422,1768009843612,-150.0,0.00016756,2]
[401168423,1768009843621,-150.0,0.00016758,2]
[401168424,1768009843631,-150.0,0.00016762,2]
[401168425,1768009843640,-150.0,0.00016764,2]
[401168426,1768009843649,-150.0,0.0001677,2]
[401168427,1768009843660,-150.0,0.00016773,2]
[401168428,1768009843669,-150.0,0.00016778,2]
[401168429,1768009843679,-150.0,0.00016779,2]
[401168430,1768009843689,-150.0,0.00016781,2]
[401168431,1768009843699,-150.0,0.00016782,2]
[401168432,1768009843707,-150.0,0.00016783,2]
[401168433,1768009843716,-150.0,0.00016791,2]
[401168434,1768009843726,-200.0,0.00016792,2]
[401168435,1768009843735,-150.0,0.00016792,2]
[401168436,1768009843745,-150.0,0.00016793,2]
[401168437,1768009843754,-150.0,0.000168,2]
[401168438,1768009843764,-150.0,0.000168,2]
[401168439,1768009843773,-150.0,0.00016808,2]
[401168440,1768009843783,-150.0,0.00016809,2]
[401168441,1768009843793,-150.0,0.00016814,2]
[401168442,1768009843802,-150.0,0.00016815,2]
[401168443,1768009843811,-150.0,0.00016818,2]
[401168444,1768009843820,-150.0,0.00016819,2]
[401168445,1768009843829,-1000.0,0.00016821,2]
[401168446,1768009843838,-150.0,0.00016822,2]
[401168447,1768009843848,-150.0,0.0001683,2]
[401168448,1768009843857,-150.0,0.00016834,2]
[401168449,1768009843866,-150.0,0.00016834,2]
[401168450,1768009843876,-150.0,0.00016837,2]
[401168451,1768009843885,-150.0,0.00016837,2]
[401168452,1768009843894,-150.0,0.00016838,2]
[401168453,1768009843903,-150.0,0.00016843,2]
[401168454,1768009843912,-150.0,0.00016843,2]
[401168455,1768009843921,-150.0,0.00016844,2]
[401168456,1768009843930,-150.0,0.00016845,2]
[401168457,1768009843939,-365.15381069,0.0001685,2]
[401168458,1768009843948,-150.0,0.00016855,2]
[401168459,1768009843957,-150.0,0.00016856,2]
[401168460,1768009843966,-466.0,0.00016858,2]
[401168461,1768009843976,-150.0,0.00016859,2]
[401168462,1768009843986,-150.0,0.00016861,2]
[401168463,1768009843996,-150.0,0.00016865,2]
[401168464,1768009844005,-150.0,0.00016867,2]
[401168465,1768009844014,-150.0,0.00016872,2]
[401168466,1768009844023,-150.0,0.00016875,2]
[401168467,1768009844032,-150.0,0.00016875,2]
[401168468,1768009844041,-150.0,0.00016875,2]
[401168469,1768009844049,-759.82,0.00016881,2]
[401168470,1768009844059,-150.0,0.00016884,2]
[401168471,1768009844068,-150.0,0.00016885,2]
[401168472,1768009844077,-466.0,0.00016888,2]
[401168473,1768009844085,-150.0,0.00016889,2]
[401168474,1768009844094,-150.0,0.00016892,2]
[401168475,1768009844104,-150.0,0.00016894,2]